[Event "Icelandic Team-ch Kvika Leagu 2023-24"]
[Site "Reykjavik"]
[Date "2024.03.03"]
[Round "10"]
[White "Hansen, Soren Bech"]
[Black "Arngrimsson, Dagur"]
[Result "1-0"]
[ECO "C55"]
[WhiteElo "2213"]
[BlackElo "2366"]
[Annotator "RC"]
[PlyCount "83"]
[EventDate "2024.02.29"]
[EventType "team-tourn"]
[EventCountry "ISL"]
[SourceTitle "playchess.com"]
[Source "ChessBase"]
[SourceQuality "1"]
[TimeControl "40/5400+30:900+30"]

1. e4 {[%emt 0:00:01]} e5 {[%emt 0:04:30]} 2. Nf3 {[%emt 0:00:29]} Nc6 {[%emt 0:00:08]} 3. Bc4 {[%emt 0:00:09]} Nf6 {[%emt 0:00:11]} 4. d3 {[%emt 0:00:16]} Be7 {[%emt 0:00:48]} 5. O-O {[%emt 0:01:01]} O-O {[%emt 0:00:17]} 6. Re1 {[%emt 0:01:08]} d6 {[%emt 0:00:10]} 7. a4 {[%emt 0:00:51]} Na5 {[%emt 0:06:37]} 8. Ba2 {[%emt 0:01:05]} c5 {[%emt 0:00:10]} 9. Nc3 {[%emt 0:02:31]} Nc6 {[%emt 0:00:53]} 10. Bg5 {[%emt 0:06:59]} Be6 {[%emt 0:05:35]} 11. Bxf6 {[%emt 0:02:47]} Bxf6 {[%emt 0:00:08]} 12. Nd5 {[%emt 0:05:02]} g6 {[%emt 0:00:44]} 13. c3 {[%emt 0:10:38]} Bg7 {[%emt 0:01:29]} 14. Qc1 {[%emt 0:08:06]} Kh8 {[%emt 0:11:19]} 15. Qg5 {[%emt 0:08:32]} f6 {[%emt 0:05:13]} 16. Qe3 {[%emt 0:03:56]} f5 {[%emt 0:08:54]} 17. Qg5 {[%emt 0:05:41]} Qd7 {[%emt 0:14:19]} 18. Qh4 {[%emt 0:09:53]} h6 {[%emt 0:06:54]} 19. Ne3 {[%emt 0:01:49]} Bxa2 {[%emt 0:05:00]} 20. Rxa2 {[%emt 0:03:27]} Qf7 {[%emt 0:04:57]} 21. Nd5 {[%emt 0:02:00]} Kg8 {[%emt 0:00:09]} 22. Nd2 {[%emt 0:04:20]} h5 {[%emt 0:07:49]} 23. f3 {[%emt 0:05:02]} Bh6 {[%emt 0:00:49]} 24. Nc4 {[%emt 0:00:08]} Rad8 {[%emt 0:04:04]} 25. b3 {[%emt 0:04:27]} Kh7 {[%emt 0:00:51]} 26. Qh3 {[%emt 0:03:47]} f4 {[%emt 0:02:12]} 27. Rf1 {[%emt 0:02:31]} Bg5 {[%emt 0:08:38]} 28. g4 {[%emt 0:01:59]} fxg3 {[%emt 0:00:43]} 29. hxg3 {[%emt 0:00:08]} Kg7 {[%emt 0:00:26]} 30. Rg2 {[%emt 0:01:22]} Qd7 {[%emt 0:00:47]} 31. Qxd7+ {[%emt 0:00:41]} Rxd7 {[%emt 0:00:03]} 32. f4 {[%emt 0:00:22]} exf4 {[%emt 0:00:31]} 33. gxf4 {[%emt 0:00:05]} Bd8 {[%emt 0:00:39]} 34. Rf3 {[%emt 0:01:07]} h4 {[%emt 0:00:41]} 35. f5 {[%emt 0:02:07]} g5 {[%emt 0:00:05]} 36. Nf4 {[%emt 0:00:11]} Kh6 {[%emt 0:00:24]} 37. Ng6 {[%emt 0:02:25]} Rf6 {[%emt 0:01:06]} 38. Ne3 {[%emt 0:00:15]} Rxg6 {[%emt 0:00:09]} 39. Ng4+ {[%emt 0:00:30]} Kg7 {[%emt 0:00:37]} 40. fxg6 {[%emt 0:00:00]} Kxg6 {[%emt 0:00:00]} 41. Rf5 {[%emt 0:03:03]} Ne5 {[%emt 0:03:01]} 42. Rxe5 {[%emt 0:01:44]} 1-0

[Event "Icelandic Team-ch Kvika Leagu 2023-24"]
[Site "Reykjavik"]
[Date "2024.03.03"]
[Round "10"]
[White "Thorsteinsson, Thorsteinn"]
[Black "Kulaots, Kaido"]
[Result "1/2-1/2"]
[ECO "A46"]
[WhiteElo "2193"]
[BlackElo "2534"]
[Annotator "RC"]
[PlyCount "96"]
[EventDate "2024.02.29"]
[EventType "team-tourn"]
[EventCountry "ISL"]
[SourceTitle "playchess.com"]
[Source "ChessBase"]
[SourceQuality "1"]
[TimeControl "40/5400+30:900+30"]

1. d4 {[%emt 0:00:04]} Nf6 {[%emt 0:00:14]} 2. Nf3 {[%emt 0:00:55]} e6 {[%emt 0:01:23]} 3. g3 {[%emt 0:01:14]} d5 {[%emt 0:02:59]} 4. Bg2 {[%emt 0:01:05]} b5 {[%emt 0:01:40]} 5. O-O {[%emt 0:02:27]} Bb7 {[%emt 0:03:13]} 6. Nbd2 {[%emt 0:05:06]} Be7 {[%emt 0:16:04]} 7. Ne5 {[%emt 0:08:45]} O-O {[%emt 0:02:46]} 8. c3 {[%emt 0:07:50]} c5 {[%emt 0:08:38]} 9. a4 {[%emt 0:00:41]} a6 {[%emt 0:03:50]} 10. axb5 {[%emt 0:02:23]} axb5 {[%emt 0:00:12]} 11. Rxa8 {[%emt 0:00:04]} Bxa8 {[%emt 0:00:06]} 12. dxc5 {[%emt 0:00:26]} Bxc5 {[%emt 0:01:11]} 13. Nd3 {[%emt 0:00:42]} Be7 {[%emt 0:03:08]} 14. Qb3 {[%emt 0:00:40]} Qa5 {[%emt 0:02:33]} 15. Nf3 {[%emt 0:00:55]} Nc6 {[%emt 0:01:44]} 16. Bf4 {[%emt 0:02:21]} Bb7 {[%emt 0:17:40]} 17. Rc1 {[%emt 0:20:49]} Rc8 {[%emt 0:01:31]} 18. Qd1 {[%emt 0:04:44]} Qa4 {[%emt 0:15:32]} 19. b3 {[%emt 0:01:05]} Qa5 {[%emt 0:00:23]} 20. Ra1 {[%emt 0:01:56]} Qd8 {[%emt 0:00:03]} 21. Nd4 {[%emt 0:00:51]} Nxd4 {[%emt 0:02:22]} 22. cxd4 {[%emt 0:00:07]} Qb6 {[%emt 0:01:02]} 23. Rc1 {[%emt 0:07:08]} b4 {[%emt 0:02:31]} 24. Rxc8+ {[%emt 0:01:51]} Bxc8 {[%emt 0:00:03]} 25. Qc2 {[%emt 0:08:51]} Ba6 {[%emt 0:00:29]} 26. e3 {[%emt 0:02:26]} h6 {[%emt 0:03:12]} 27. Bf1 {[%emt 0:03:42]} Ne4 {[%emt 0:00:56]} 28. Ne5 {[%emt 0:03:11]} Bxf1 {[%emt 0:02:45]} 29. Kxf1 {[%emt 0:02:55]} Nc3 {[%emt 0:02:16]} 30. g4 {[%emt 0:01:37]} Qa6+ {[%emt 0:01:31]} 31. Kg2 {[%emt 0:00:21]} Qa1 {[%emt 0:02:15]} 32. Nc6 {[%emt 0:01:18]} Bf8 {[%emt 0:00:12]} 33. g5 {[%emt 0:01:49]} hxg5 {[%emt 0:00:17]} 34. Bxg5 {[%emt 0:00:05]} Qa6 {[%emt 0:01:18]} 35. Ne5 {[%emt 0:00:44]} Qb5 {[%emt 0:01:28]} 36. Bf4 {[%emt 0:02:17]} Be7 {[%emt 0:00:17]} 37. Nf3 {[%emt 0:00:32]} Qa6 {[%emt 0:00:41]} 38. Bg5 {[%emt 0:00:49]} Bf8 {[%emt 0:00:29]} 39. Bf4 {[%emt 0:00:06]} Be7 {[%emt 0:00:07]} 40. Bg5 {[%emt 0:00:00]} Bd6 {[%emt 0:00:00]} 41. Bh4 {[%emt 0:00:14]} Qa7 {[%emt 0:08:19]} 42. Bg3 {[%emt 0:02:05]} Be7 {[%emt 0:00:17]} 43. h4 {[%emt 0:01:28]} Qd7 {[%emt 0:02:34]} 44. Ne5 {[%emt 0:02:03]} Qe8 {[%emt 0:00:18]} 45. Qd3 {[%emt 0:01:32]} Qc8 {[%emt 0:01:28]} 46. Qc2 {[%emt 0:00:47]} Qe8 {[%emt 0:02:50]} 47. Qd3 {[%emt 0:00:45]} Qc8 {[%emt 0:00:37]} 48. Qc2 {[%emt 0:00:08]} Qe8 {[%emt 0:00:28]} 1/2-1/2

[Event "Icelandic Team-ch Kvika Leagu 2023-24"]
[Site "Reykjavik"]
[Date "2024.03.03"]
[Round "10"]
[White "Petersson, Baldur Teodor"]
[Black "Van den Berg, Bram"]
[Result "1/2-1/2"]
[ECO "B01"]
[WhiteElo "2190"]
[BlackElo "2173"]
[Annotator "RC"]
[PlyCount "87"]
[EventDate "2024.02.29"]
[EventType "team-tourn"]
[EventCountry "ISL"]
[SourceTitle "playchess.com"]
[Source "ChessBase"]
[SourceQuality "1"]
[TimeControl "40/5400+30:900+30"]

1. e4 {[%emt 0:00:16]} d5 {[%emt 0:00:24]} 2. exd5 {[%emt 0:00:08]} Nf6 {[%emt 0:00:04]} 3. d4 {[%emt 0:00:15]} Bg4 {[%emt 0:00:05]} 4. Bb5+ {[%emt 0:01:19]} c6 {[%emt 0:02:11]} 5. dxc6 {[%emt 0:00:11]} Nxc6 {[%emt 0:00:04]} 6. Nf3 {[%emt 0:01:01]} Qb6 {[%emt 0:00:20]} 7. Nc3 {[%emt 0:01:43]} O-O-O {[%emt 0:01:20]} 8. Bxc6 {[%emt 0:00:34]} Qxc6 {[%emt 0:00:05]} 9. h3 {[%emt 0:00:16]} Bxf3 {[%emt 0:00:47]} 10. Qxf3 {[%emt 0:00:06]} Qxf3 {[%emt 0:00:03]} 11. gxf3 {[%emt 0:00:15]} Rxd4 {[%emt 0:00:06]} 12. Be3 {[%emt 0:00:51]} Rd7 {[%emt 0:22:13]} 13. Bxa7 {[%emt 0:01:39]} e6 {[%emt 0:03:08]} 14. Na4 {[%emt 0:02:43]} Bb4+ {[%emt 0:04:46]} 15. c3 {[%emt 0:09:50]} Ba5 {[%emt 0:00:58]} 16. Bb6 {[%emt 0:13:39]} Rd5 {[%emt 0:00:42]} 17. b4 {[%emt 0:00:29]} Re5+ {[%emt 0:00:06]} 18. Be3 {[%emt 0:03:08]} Bc7 {[%emt 0:02:33]} 19. c4 {[%emt 0:05:26]} Rd8 {[%emt 0:11:33]} 20. O-O {[%emt 0:05:38]} Rf5 {[%emt 0:04:22]} 21. Kg2 {[%emt 0:08:27]} Nd7 {[%emt 0:01:27]} 22. b5 {[%emt 0:05:09]} Ne5 {[%emt 0:01:25]} 23. b6 {[%emt 0:00:31]} Bb8 {[%emt 0:00:39]} 24. Rfd1 {[%emt 0:05:36]} Rxd1 {[%emt 0:03:23]} 25. Rxd1 {[%emt 0:00:08]} Nxf3 {[%emt 0:00:05]} 26. Nc3 {[%emt 0:01:25]} Ne5 {[%emt 0:03:07]} 27. Ne4 {[%emt 0:24:35]} Nd7 {[%emt 0:03:01]} 28. c5 {[%emt 0:02:23]} h6 {[%emt 0:04:30]} 29. a4 {[%emt 0:00:43]} Re5 {[%emt 0:06:00]} 30. Nc3 {[%emt 0:00:16]} g5 {[%emt 0:05:39]} 31. Nb5 {[%emt 0:02:17]} Rd5 {[%emt 0:01:56]} 32. Rc1 {[%emt 0:00:36]} Ne5 {[%emt 0:01:31]} 33. a5 {[%emt 0:03:12]} Nc6 {[%emt 0:04:06]} 34. Ra1 {[%emt 0:01:47]} f5 {[%emt 0:05:51]} 35. f3 {[%emt 0:00:06]} Rd3 {[%emt 0:00:25]} 36. Bf2 {[%emt 0:00:17]} Rd2 {[%emt 0:00:49]} 37. a6 {[%emt 0:00:55]} bxa6 {[%emt 0:00:22]} 38. Rxa6 {[%emt 0:00:18]} Kb7 {[%emt 0:00:10]} 39. Ra3 {[%emt 0:01:18]} Rb2 {[%emt 0:01:51]} 40. Nc3 {[%emt 0:00:00]} Be5 {[%emt 0:00:00]} 41. Kf1 {[%emt 0:04:47]} Rd2 {[%emt 0:07:05]} 42. Ne2 {[%emt 0:02:53]} Rd1+ {[%emt 0:00:49]} 43. Kg2 {[%emt 0:00:06]} Rd2 {[%emt 0:03:34]} 44. Kf1 {[%emt 0:00:08]} 1/2-1/2

[Event "Icelandic Team-ch Kvika Leagu 2023-24"]
[Site "Reykjavik"]
[Date "2024.03.03"]
[Round "10"]
[White "Mai, Alexander Oliver"]
[Black "Thorarinsson, Pall A."]
[Result "1/2-1/2"]
[ECO "B07"]
[WhiteElo "2160"]
[BlackElo "2159"]
[Annotator "RC"]
[PlyCount "124"]
[EventDate "2024.02.29"]
[EventType "team-tourn"]
[EventCountry "ISL"]
[SourceTitle "playchess.com"]
[Source "ChessBase"]
[SourceQuality "1"]
[TimeControl "40/5400+30:900+30"]

1. e4 {[%emt 0:06:43]} d6 {[%emt 0:00:26]} 2. d4 {[%emt 0:00:38]} Nf6 {[%emt 0:00:04]} 3. Nc3 {[%emt 0:00:06]} g6 {[%emt 0:00:03]} 4. g3 {[%emt 0:01:51]} Bg7 {[%emt 0:01:51]} 5. Bg2 {[%emt 0:00:11]} O-O {[%emt 0:00:30]} 6. Nge2 {[%emt 0:00:30]} c6 {[%emt 0:00:39]} 7. a4 {[%emt 0:00:38]} e5 {[%emt 0:01:37]} 8. h3 {[%emt 0:01:27]} Na6 {[%emt 0:08:50]} 9. Be3 {[%emt 0:03:30]} Re8 {[%emt 0:03:28]} 10. O-O {[%emt 0:01:08]} Nb4 {[%emt 0:06:25]} 11. Qd2 {[%emt 0:06:20]} b6 {[%emt 0:18:10]} 12. Rad1 {[%emt 0:03:37]} Bb7 {[%emt 0:17:26]} 13. f4 {[%emt 0:07:49]} exd4 {[%emt 0:07:51]} 14. Nxd4 {[%emt 0:00:53]} c5 {[%emt 0:10:08]} 15. Ndb5 {[%emt 0:00:38]} Nxe4 {[%emt 0:02:53]} 16. Nxe4 {[%emt 0:10:38]} Bxe4 {[%emt 0:00:26]} 17. Nxd6 {[%emt 0:05:08]} Bxg2 {[%emt 0:02:38]} 18. Kxg2 {[%emt 0:00:44]} Re7 {[%emt 0:05:27]} 19. c3 {[%emt 0:07:55]} Nc6 {[%emt 0:02:21]} 20. Qd5 {[%emt 0:01:16]} Na5 {[%emt 0:01:20]} 21. b4 {[%emt 0:03:40]} Nb7 {[%emt 0:03:11]} 22. Nxb7 {[%emt 0:09:31]} Qxd5+ {[%emt 0:00:08]} 23. Rxd5 {[%emt 0:00:02]} Rxe3 {[%emt 0:00:58]} 24. bxc5 {[%emt 0:00:30]} Rxc3 {[%emt 0:00:48]} 25. Rfd1 {[%emt 0:01:45]} bxc5 {[%emt 0:01:55]} 26. Nxc5 {[%emt 0:00:28]} Rc2+ {[%emt 0:01:51]} 27. Kf3 {[%emt 0:00:32]} Rc3+ {[%emt 0:00:45]} 28. R1d3 {[%emt 0:01:10]} Rxd3+ {[%emt 0:00:47]} 29. Nxd3 {[%emt 0:00:22]} a5 {[%emt 0:01:01]} 30. Ne5 {[%emt 0:03:07]} Bxe5 {[%emt 0:00:37]} 31. Rxe5 {[%emt 0:00:05]} h5 {[%emt 0:00:21]} 32. g4 {[%emt 0:00:23]} hxg4+ {[%emt 0:00:04]} 33. hxg4 {[%emt 0:00:02]} Kf8 {[%emt 0:00:54]} 34. Ke4 {[%emt 0:05:24]} Ra6 {[%emt 0:00:33]} 35. Kd4 {[%emt 0:03:15]} Rf6 {[%emt 0:00:53]} 36. f5 {[%emt 0:01:06]} gxf5 {[%emt 0:00:23]} 37. gxf5 {[%emt 0:00:05]} Ra6 {[%emt 0:00:32]} 38. Kc4 {[%emt 0:00:19]} Kg7 {[%emt 0:00:16]} 39. Kb5 {[%emt 0:00:17]} Ra8 {[%emt 0:00:22]} 40. Kb6 {[%emt 0:00:00]} Kf6 {[%emt 0:00:00]} 41. Rxa5 {[%emt 0:02:01]} Rb8+ {[%emt 0:02:30]} 42. Kc7 {[%emt 0:00:41]} Rb4 {[%emt 0:03:12]} 43. Kc6 {[%emt 0:02:04]} Kg5 {[%emt 0:02:26]} 44. Kc5 {[%emt 0:03:11]} Rf4 {[%emt 0:04:09]} 45. Kd6 {[%emt 0:00:09]} f6 {[%emt 0:01:17]} 46. Ke6 {[%emt 0:01:36]} Re4+ {[%emt 0:00:35]} 47. Kf7 {[%emt 0:02:28]} Rb4 {[%emt 0:02:35]} 48. Ra6 {[%emt 0:00:51]} Kxf5 {[%emt 0:01:00]} 49. Ra5+ {[%emt 0:04:17]} Ke4 {[%emt 0:00:06]} 50. Kxf6 {[%emt 0:00:07]} Kd4 {[%emt 0:01:02]} 51. Ra8 {[%emt 0:02:17]} Kc5 {[%emt 0:00:43]} 52. Ke6 {[%emt 0:01:19]} Kb6 {[%emt 0:00:12]} 53. Kd6 {[%emt 0:00:49]} Rd4+ {[%emt 0:01:05]} 54. Ke5 {[%emt 0:00:09]} Rd7 {[%emt 0:00:56]} 55. a5+ {[%emt 0:00:21]} Kb7 {[%emt 0:00:17]} 56. Rh8 {[%emt 0:00:09]} Ka6 {[%emt 0:00:24]} 57. Rh5 {[%emt 0:00:09]} Rd1 {[%emt 0:00:28]} 58. Ke4 {[%emt 0:00:13]} Ra1 {[%emt 0:00:23]} 59. Rh8 {[%emt 0:00:10]} Ra4+ {[%emt 0:00:10]} 60. Kd3 {[%emt 0:00:05]} Rxa5 {[%emt 0:00:11]} 61. Ra8+ {[%emt 0:00:05]} Kb5 {[%emt 0:00:11]} 62. Rxa5+ {[%emt 0:00:04]} Kxa5 {[%emt 0:00:08]} 1/2-1/2

[Event "Icelandic Team-ch Kvika Leagu 2023-24"]
[Site "Reykjavik"]
[Date "2024.03.03"]
[Round "10"]
[White "Prudnikov, Andrey"]
[Black "Kristinsson, Baldur"]
[Result "1-0"]
[ECO "B95"]
[WhiteElo "2094"]
[BlackElo "2169"]
[Annotator "RC"]
[PlyCount "81"]
[EventDate "2024.02.29"]
[EventType "team-tourn"]
[EventCountry "ISL"]
[SourceTitle "playchess.com"]
[Source "ChessBase"]
[SourceQuality "1"]
[TimeControl "40/5400+30:900+30"]

1. e4 {[%emt 0:00:04]} c5 {[%emt 0:00:03]} 2. Nf3 {[%emt 0:00:04]} e6 {[%emt 0:00:16]} 3. d4 {[%emt 0:00:06]} cxd4 {[%emt 0:00:04]} 4. Nxd4 {[%emt 0:00:06]} a6 {[%emt 0:00:03]} 5. Nc3 {[%emt 0:00:06]} Qc7 {[%emt 0:00:07]} 6. Qf3 {[%emt 0:00:04]} Nf6 {[%emt 0:01:34]} 7. Bg5 {[%emt 0:00:10]} Be7 {[%emt 0:00:32]} 8. O-O-O {[%emt 0:00:08]} d6 {[%emt 0:02:22]} 9. Qg3 {[%emt 0:01:30]} Nbd7 {[%emt 0:18:05]} 10. Kb1 {[%emt 0:03:18]} O-O {[%emt 0:01:36]} 11. h4 {[%emt 0:00:53]} Kh8 {[%emt 0:05:24]} 12. h5 {[%emt 0:01:08]} b5 {[%emt 0:01:10]} 13. h6 {[%emt 0:01:51]} g6 {[%emt 0:00:11]} 14. a3 {[%emt 0:00:30]} Bb7 {[%emt 0:03:28]} 15. Qh4 {[%emt 0:01:16]} Bd8 {[%emt 0:15:12]} 16. Bd3 {[%emt 0:07:39]} Ne8 {[%emt 0:03:44]} 17. Bxd8 {[%emt 0:07:10]} Qxd8 {[%emt 0:00:08]} 18. Qg3 {[%emt 0:06:54]} Qf6 {[%emt 0:05:07]} 19. Nde2 {[%emt 0:02:08]} Rc8 {[%emt 0:03:52]} 20. f4 {[%emt 0:00:28]} Nc5 {[%emt 0:03:32]} 21. Rdf1 {[%emt 0:02:37]} Qe7 {[%emt 0:06:05]} 22. Qe3 {[%emt 0:01:29]} f5 {[%emt 0:02:00]} 23. Rhg1 {[%emt 0:07:39]} Qf6 {[%emt 0:04:44]} 24. g4 {[%emt 0:02:11]} fxe4 {[%emt 0:01:11]} 25. Nxe4 {[%emt 0:04:13]} Nxe4 {[%emt 0:01:05]} 26. Bxe4 {[%emt 0:00:09]} Bxe4 {[%emt 0:00:22]} 27. Qxe4 {[%emt 0:00:06]} d5 {[%emt 0:01:09]} 28. Qd3 {[%emt 0:15:55]} Nd6 {[%emt 0:00:18]} 29. Nd4 {[%emt 0:05:25]} Rc4 {[%emt 0:02:19]} 30. c3 {[%emt 0:00:50]} Ne4 {[%emt 0:00:41]} 31. Nf3 {[%emt 0:04:55]} Qxf4 {[%emt 0:03:45]} 32. Ne5 {[%emt 0:00:32]} Nf2 {[%emt 0:00:03]} 33. Qc2 {[%emt 0:11:43]} Qxe5 {[%emt 0:03:00]} 34. Rxf2 {[%emt 0:00:06]} Rcf4 {[%emt 0:01:57]} 35. Re2 {[%emt 0:01:59]} Re4 {[%emt 0:02:51]} 36. Rge1 {[%emt 0:02:33]} Rff4 {[%emt 0:04:07]} 37. Ka2 {[%emt 0:01:57]} Rxg4 {[%emt 0:01:16]} 38. Rxe4 {[%emt 0:01:54]} Rxe4 {[%emt 0:02:34]} 39. Qf2 {[%emt 0:03:42]} Qf5 {[%emt 0:03:07]} 40. Qa7 {[%emt 0:00:00]} Qf8 {[%emt 0:00:00]} 41. Rf1 {[%emt 0:00:54]} 1-0

[Event "Icelandic Team-ch Kvika Leagu 2023-24"]
[Site "Reykjavik"]
[Date "2024.03.03"]
[Round "10"]
[White "Ingvason, Johann"]
[Black "Ragnarsson, Dagur"]
[Result "1-0"]
[ECO "E68"]
[WhiteElo "2092"]
[BlackElo "2337"]
[Annotator "RC"]
[PlyCount "193"]
[EventDate "2024.02.29"]
[EventType "team-tourn"]
[EventCountry "ISL"]
[SourceTitle "playchess.com"]
[Source "ChessBase"]
[SourceQuality "1"]
[TimeControl "40/5400+30:900+30"]

1. d4 {[%emt 0:00:03]} Nf6 {[%emt 0:07:23]} 2. c4 {[%emt 0:00:07]} g6 {[%emt 0:00:04]} 3. g3 {[%emt 0:00:33]} Bg7 {[%emt 0:00:48]} 4. Bg2 {[%emt 0:00:16]} O-O {[%emt 0:00:37]} 5. Nc3 {[%emt 0:02:34]} d6 {[%emt 0:00:09]} 6. Nf3 {[%emt 0:01:00]} Nbd7 {[%emt 0:00:57]} 7. O-O {[%emt 0:01:02]} e5 {[%emt 0:00:05]} 8. e4 {[%emt 0:01:02]} exd4 {[%emt 0:00:08]} 9. Nxd4 {[%emt 0:00:08]} a5 {[%emt 0:00:50]} 10. h3 {[%emt 0:05:37]} Re8 {[%emt 0:01:15]} 11. Re1 {[%emt 0:00:51]} Nc5 {[%emt 0:00:23]} 12. Ndb5 {[%emt 0:01:39]} Be6 {[%emt 0:05:49]} 13. e5 {[%emt 0:01:13]} dxe5 {[%emt 0:00:36]} 14. Qxd8 {[%emt 0:00:11]} Raxd8 {[%emt 0:00:48]} 15. Nxc7 {[%emt 0:00:16]} Re7 {[%emt 0:10:07]} 16. Nxe6 {[%emt 0:01:24]} Rxe6 {[%emt 0:00:29]} 17. Bg5 {[%emt 0:06:43]} h6 {[%emt 0:02:22]} 18. Bxf6 {[%emt 0:04:12]} Bxf6 {[%emt 0:00:54]} 19. Bd5 {[%emt 0:11:23]} Rb6 {[%emt 0:09:22]} 20. Re2 {[%emt 0:00:37]} Kf8 {[%emt 0:06:40]} 21. Kg2 {[%emt 0:16:56]} Bg7 {[%emt 0:00:57]} 22. Ne4 {[%emt 0:08:38]} Nd3 {[%emt 0:15:14]} 23. Rb1 {[%emt 0:10:45]} f5 {[%emt 0:00:24]} 24. Nc3 {[%emt 0:00:19]} e4 {[%emt 0:00:25]} 25. Na4 {[%emt 0:00:05]} Rb4 {[%emt 0:02:47]} 26. b3 {[%emt 0:00:33]} b5 {[%emt 0:00:16]} 27. a3 {[%emt 0:01:58]} bxa4 {[%emt 0:11:29]} 28. axb4 {[%emt 0:00:05]} axb3 {[%emt 0:00:06]} 29. bxa5 {[%emt 0:00:48]} b2 {[%emt 0:00:06]} 30. a6 {[%emt 0:00:56]} Bd4 {[%emt 0:00:04]} 31. Rd2 {[%emt 0:04:48]} Rd6 {[%emt 0:02:22]} 32. Bb7 {[%emt 0:03:51]} Ke7 {[%emt 0:00:05]} 33. f3 {[%emt 0:02:03]} exf3+ {[%emt 0:00:08]} 34. Bxf3 {[%emt 0:00:18]} Bc5 {[%emt 0:05:17]} 35. Bd5 {[%emt 0:03:19]} Ne5 {[%emt 0:03:01]} 36. Rdxb2 {[%emt 0:00:53]} Rxa6 {[%emt 0:00:05]} 37. Re2 {[%emt 0:02:07]} Kf6 {[%emt 0:02:32]} 38. Rb5 {[%emt 0:02:10]} Nd7 {[%emt 0:00:21]} 39. Bb7 {[%emt 0:01:24]} Rb6 {[%emt 0:02:19]} 40. Bc8 {[%emt 0:00:00]} Rxb5 {[%emt 0:00:00]} 41. cxb5 {[%emt 0:04:14]} Ne5 {[%emt 0:00:09]} 42. Rc2 {[%emt 0:00:52]} Bb6 {[%emt 0:00:07]} 43. Rd2 {[%emt 0:02:03]} Nc4 {[%emt 0:01:49]} 44. Rd7 {[%emt 0:00:18]} g5 {[%emt 0:00:46]} 45. Rh7 {[%emt 0:00:43]} Kg6 {[%emt 0:00:07]} 46. Re7 {[%emt 0:00:09]} f4 {[%emt 0:07:28]} 47. Re6+ {[%emt 0:00:49]} Kg7 {[%emt 0:00:04]} 48. gxf4 {[%emt 0:05:39]} gxf4 {[%emt 0:00:07]} 49. Bb7 {[%emt 0:00:26]} Be3 {[%emt 0:00:33]} 50. Kf3 {[%emt 0:00:56]} Nd2+ {[%emt 0:00:57]} 51. Kg4 {[%emt 0:01:01]} Nb3 {[%emt 0:01:59]} 52. Bd5 {[%emt 0:01:57]} Nd4 {[%emt 0:00:35]} 53. Re7+ {[%emt 0:00:31]} Kf6 {[%emt 0:00:08]} 54. Rf7+ {[%emt 0:02:07]} Kg6 {[%emt 0:00:30]} 55. h4 {[%emt 0:04:11]} h5+ {[%emt 0:00:24]} 56. Kh3 {[%emt 0:00:05]} Nxb5 {[%emt 0:00:11]} 57. Rd7 {[%emt 0:00:29]} Nd4 {[%emt 0:04:16]} 58. Bf7+ {[%emt 0:00:46]} Kf5 {[%emt 0:06:34]} 59. Bxh5 {[%emt 0:00:07]} f3 {[%emt 0:00:47]} 60. Rf7+ {[%emt 0:02:42]} Ke6 {[%emt 0:02:43]} 61. Rf8 {[%emt 0:00:16]} f2 {[%emt 0:01:28]} 62. Kg2 {[%emt 0:00:05]} Nc6 {[%emt 0:00:23]} 63. Bf3 {[%emt 0:01:58]} Ne5 {[%emt 0:01:55]} 64. Be2 {[%emt 0:00:05]} Bc5 {[%emt 0:00:38]} 65. Rf4 {[%emt 0:00:32]} Be3 {[%emt 0:00:47]} 66. Re4 {[%emt 0:00:22]} Bc5 {[%emt 0:00:02]} 67. h5 {[%emt 0:00:23]} Kf5 {[%emt 0:00:06]} 68. Ra4 {[%emt 0:01:15]} Be3 {[%emt 0:00:41]} 69. Ra6 {[%emt 0:00:21]} Nf7 {[%emt 0:01:14]} 70. Kf3 {[%emt 0:00:19]} Bd4 {[%emt 0:00:35]} 71. h6 {[%emt 0:00:46]} Bf6 {[%emt 0:02:34]} 72. h7 {[%emt 0:00:26]} Kg6 {[%emt 0:00:07]} 73. Bd3+ {[%emt 0:00:22]} Kg7 {[%emt 0:00:03]} 74. Kxf2 {[%emt 0:00:46]} Bd4+ {[%emt 0:01:01]} 75. Kg2 {[%emt 0:00:22]} Ne5 {[%emt 0:00:36]} 76. Be4 {[%emt 0:00:38]} Nf7 {[%emt 0:00:18]} 77. Kg3 {[%emt 0:00:30]} Nh8 {[%emt 0:00:25]} 78. Ra8 {[%emt 0:00:28]} Kf7 {[%emt 0:00:04]} 79. Kg4 {[%emt 0:00:21]} Ke7 {[%emt 0:00:17]} 80. Rb8 {[%emt 0:00:18]} Ba1 {[%emt 0:00:28]} 81. Kf5 {[%emt 0:00:13]} Bc3 {[%emt 0:00:24]} 82. Rb7+ {[%emt 0:00:16]} Kd6 {[%emt 0:00:05]} 83. Rb3 {[%emt 0:00:48]} Ba1 {[%emt 0:00:06]} 84. Rd3+ {[%emt 0:00:04]} Ke7 {[%emt 0:00:06]} 85. Bc6 {[%emt 0:00:06]} Nf7 {[%emt 0:00:48]} 86. Ra3 {[%emt 0:00:51]} Bd4 {[%emt 0:00:25]} 87. Ra4 {[%emt 0:00:12]} Bc3 {[%emt 0:00:59]} 88. Ra7+ {[%emt 0:00:13]} Kf8 {[%emt 0:00:04]} 89. Bd5 {[%emt 0:00:28]} Nh8 {[%emt 0:00:16]} 90. Ke6 {[%emt 0:00:40]} Bd4 {[%emt 0:00:29]} 91. Rb7 {[%emt 0:00:12]} Ba1 {[%emt 0:00:40]} 92. Be4 {[%emt 0:00:22]} Bc3 {[%emt 0:00:13]} 93. Bf3 {[%emt 0:00:50]} Ba1 {[%emt 0:00:43]} 94. Bh5 {[%emt 0:00:02]} Bd4 {[%emt 0:00:08]} 95. Rb4 {[%emt 0:02:01]} Bc3 {[%emt 0:00:08]} 96. Rg4 {[%emt 0:00:03]} Bg7 {[%emt 0:00:24]} 97. Rg2 {[%emt 0:01:51]} 1-0